bitfinex-derivatives/quotes_ETHF0:USTF0_20260312
["timestamp","ask_amount","ask_price","bid_price","bid_amount"]
[1773278583065,1.24188145,2049.3,2048.7,1.25420566]
[1773278585767,1.32300096,2049.2,2048.7,1.25420566]
[1773278586067,1.24188145,2049.1,2048.7,1.25420566]
[1773278587169,1.24188145,2049.1,2048.5,1.25420566]
[1773278590170,1.48585145,2049.4,2048.9,1.25420566]
[1773278590371,1.24188145,2049.4,2048.9,1.25420566]
[1773278591673,1.24188145,2049.5,2048.9,1.25420566]
[1773278591875,1.24188145,2049.7,2049.3,1.25420566]
[1773278593470,0.0034425,2049.8,2049.3,1.25420566]
[1773278593672,1.24532395,2049.8,2049.3,1.25420566]
[1773278596974,1.24188145,2049.7,2048.9,1.25420566]
[1773278597179,1.24188145,2049.5,2048.9,1.25420566]
[1773278597478,1.24188145,2049.5,2049.1,1.25420566]
[1773278597778,1.24188145,2049.7,2049.1,1.25420566]
[1773278612887,1.24188145,2049.7,2049.3,1.17481761]
[1773278613093,1.16431287,2049.8,2049.3,1.17481761]
[1773278616389,1.16087037,2049.8,2049.3,1.17481761]
[1773278616594,1.16087037,2049.8,2049.1,1.17481761]
[1773278616795,1.16087037,2049.6,2049.1,1.17481761]
[1773278617393,1.1644576,2049.6,2049.1,1.17481761]
[1773278618695,0.00358723,2049.6,2049.1,1.17481761]
[1773278619087,1.1644576,2049.6,2049.1,1.17481761]
[1773278621401,1.26853856,2049.6,2049.1,1.17481761]
[1773278622098,1.26495133,2050.3,2049.6,1.25669958]
[1773278622298,1.26495133,2050.3,2049.9,1.25669958]
[1773278622491,1.26495133,2050.3,2049.7,1.25669958]
[1773278622698,1.26495133,2050.1,2049.5,7.64869958]
[1773278623095,1.26930215,2050.1,2049.6,1.25669958]
[1773278624600,1.26930215,2050.1,2049.5,1.26093981]
[1773278625108,1.26495133,2049.9,2049.5,0.00424023]
[1773278625405,1.26495133,2049.9,2049.4,1.25669958]
[1773278626402,1.26495133,2049.9,2049.4,1.26262995]
[1773278628604,1.26495133,2049.9,2049.4,0.00593037]
[1773278630206,1.26495133,2049.9,2049.4,1.24406511]
[1773278630412,1.20786891,2050.0,2049.7,1.23813474]
[1773278630709,1.21221973,2050.1,2049.7,1.23813474]
[1773278631510,1.20786891,2050.7,2050.1,1.23813474]
[1773278632510,1.2135857,2050.7,2050.1,1.23813474]
[1773278634110,1.20786891,2050.5,2049.8,1.23813474]
[1773278640918,1.2135857,2050.7,2049.8,1.23813474]
[1773278641418,1.2135857,2050.7,2049.6,1.23813474]
[1773278641419,1.20786891,2050.3,2049.6,1.23813474]
[1773278641916,1.20786891,2050.3,2049.4,6.39593037]
[1773278642124,1.20786891,2050.3,2049.5,1.23813474]
[1773278643515,4.0791523,2050.7,2049.5,1.23813474]
[1773278643717,1.20786891,2050.6,2050.1,1.23813474]
[1773278643924,1.20786891,2050.6,2049.7,1.23813474]
[1773278645424,1.20786891,2050.4,2049.7,1.23813474]
[1773278646124,0.00571679,2050.7,2049.7,1.23813474]
[1773278646326,1.20786891,2050.6,2049.7,1.23813474]
[1773278649324,1.20786891,2050.5,2049.7,1.23813474]
[1773278653827,1.32107643,2050.4,2049.7,1.23813474]
[1773278654030,1.20786891,2050.3,2049.5,1.23813474]
[1773278669247,1.27393041,2050.5,2049.7,1.27612983]
[1773278669453,1.27393041,2050.3,2049.6,1.27612983]
[1773278669950,1.27393041,2050.6,2049.8,1.27612983]
[1773278670148,1.27393041,2050.4,2049.8,1.27612983]
[1773278670353,1.27393041,2050.3,2049.5,1.27612983]
[1773278674851,1.27393041,2050.2,2049.5,1.27612983]
[1773278681455,1.16736879,2050.1,2049.5,1.27612983]
[1773278688064,1.16736879,2050.1,2049.4,0.00593037]
[1773278688371,1.16736879,2050.0,2049.4,0.00593037]
[1773278689373,6.391,2049.9,2049.4,1.24988967]
[1773278689674,7.55836879,2049.9,2049.4,1.24988967]
[1773278691076,1.16736879,2049.9,2049.4,1.24988967]
[1773278700787,1.230819,2049.8,2049.4,0.00593037]
[1773278700987,1.230819,2049.8,2049.3,1.19650535]
[1773278701988,6.391,2050.0,2048.7,10.43466173]
[1773278701989,2.55305831,2049.5,2048.8,1.19650535]
[1773278702188,1.230819,2049.4,2048.8,1.19650535]
[1773278702785,1.230819,2049.2,2048.5,1.01512295]
[1773278703089,1.230819,2049.0,2048.5,1.01928808]
[1773278703482,1.230819,2048.8,2048.5,0.00416513]
[1773278703683,1.230819,2048.8,2048.3,1.19650535]
[1773278704489,6.408,2049.0,2048.2,1.19650535]
[1773278704490,1.230819,2048.6,2048.2,1.19650535]
[1773278704690,1.230819,2048.6,2048.2,0.00523003]
[1773278704889,1.230819,2048.6,2048.2,1.20173538]
[1773278705688,1.23523523,2049.2,2048.2,2.52397469]
[1773278705883,7.641819,2049.7,2049.0,1.19650535]
[1773278706093,1.230819,2049.6,2049.0,1.19650535]
[1773278706288,1.230819,2049.5,2049.0,1.19650535]
[1773278707094,1.2366161,2049.5,2049.0,1.19650535]
[1773278707795,0.0057971,2049.5,2049.4,1.19650535]
[1773278707993,6.414,2049.9,2049.4,1.19650535]
[1773278708192,7.644819,2049.9,2049.4,1.19650535]
[1773278708799,1.230819,2049.8,2049.4,1.19650535]
[1773278709096,1.230819,2049.7,2049.0,1.19650535]
[1773278709290,1.230819,2049.5,2049.0,1.19650535]
[1773278710995,1.230819,2049.3,2049.0,1.19650535]
[1773278711199,6.41915251,2049.9,2049.0,1.19650535]
[1773278711200,1.230819,2049.5,2049.0,1.19650535]
[1773278719408,1.230819,2049.3,2048.7,1.19650535]
[1773278719705,1.230819,2049.1,2048.7,1.19650535]
[1773278721003,1.230819,2049.1,2048.4,1.32223931]
[1773278721203,1.230819,2049.1,2048.5,1.25955358]
[1773278722305,1.25087083,2048.7,2048.3,1.25955358]
[1773278725706,7.67887083,2048.8,2048.3,1.25955358]
[1773278726709,1.25087083,2048.7,2048.3,1.25955358]
[1773278726911,2.57311014,2049.0,2048.3,1.25955358]
[1773278727207,1.25087083,2048.9,2048.3,1.25955358]
[1773278735913,5.0844686,2049.0,2048.8,1.25955358]
[1773278736113,5.32430634,2049.6,2048.5,1.32223931]
[1773278736114,7.69487083,2049.8,2049.0,1.25955358]
[1773278736816,1.25087083,2049.7,2049.2,1.25955358]
[1773278737011,0.00515251,2049.9,2049.4,1.25955358]
[1773278737219,1.32223931,2050.2,2049.0,1.32223931]
[1773278737220,6.446,2050.1,2049.6,1.25955358]
[1773278737814,7.69687083,2050.1,2049.6,1.25955358]
[1773278738220,7.70158865,2050.1,2049.6,1.25955358]
[1773278739918,0.00471782,2050.1,2049.6,1.25955358]
[1773278740517,1.25558865,2050.1,2049.6,1.25955358]
[1773278743021,1.25558865,2050.1,2049.0,1.29126122]
[1773278750324,1.30408763,2049.9,2049.0,1.29126122]
[1773278751127,7.76008763,2049.9,2049.0,1.29126122]
[1773278751326,1.30408763,2049.9,2049.0,1.29126122]
[1773278760030,7.76408763,2050.0,2049.0,1.29126122]
[1773278760235,1.30408763,2049.9,2049.0,1.29126122]
[1773278761630,1.30408763,2049.7,2049.0,1.29126122]
[1773278761834,1.30408763,2049.9,2049.0,1.29126122]
[1773278764739,7.76508763,2050.0,2049.2,1.29480347]
[1773278765236,1.30408763,2049.9,2049.2,1.29480347]
[1773278767942,1.30880545,2050.1,2049.2,1.29480347]
[1773278768836,1.30408763,2049.9,2048.7,1.29480347]
[1773278769038,1.30408763,2049.7,2048.7,1.29480347]
[1773278778845,1.30408763,2049.5,2048.7,1.29480347]
[1773278779040,1.30408763,2049.3,2048.7,1.29480347]
[1773278781444,1.30408763,2049.3,2048.3,1.21018174]
[1773278788453,1.32798406,2049.1,2048.3,1.21018174]
[1773278789753,1.32798406,2048.9,2048.3,1.21018174]
[1773278790953,1.32798406,2049.0,2048.3,1.21018174]
[1773278792554,7.77798406,2049.2,2048.3,1.21018174]
[1773278792750,1.32798406,2049.1,2048.3,1.21018174]
[1773278799359,0.24393,2049.6,2048.3,1.21018174]
[1773278799360,1.57191406,2049.6,2048.3,1.21018174]
[1773278799666,1.32798406,2049.4,2048.3,1.21018174]
[1773278800565,1.32798406,2049.2,2048.3,1.21018174]
[1773278805175,4.28678392,2049.6,2048.4,1.23868207]
[1773278805176,1.30601608,2049.5,2048.4,1.23868207]
[1773278805376,7.37418545,2049.4,2048.4,1.23868207]
[1773278805680,1.30601608,2049.4,2048.4,1.23868207]
[1773278805881,1.30601608,2049.6,2048.8,1.23868207]
[1773278806370,1.30601608,2049.4,2048.8,1.23868207]
[1773278806573,1.30601608,2049.2,2048.3,1.23868207]
[1773278813586,2.62937403,2049.2,2048.3,2.56204002]
[1773278813782,1.2172535,2049.1,2048.4,1.32042573]
[1773278820697,1.2172535,2049.1,2048.6,1.32042573]
[1773278820993,1.2172535,2049.3,2048.6,1.32042573]
[1773278822702,1.2172535,2049.3,2048.8,1.32042573]
[1773278824294,1.2172535,2049.5,2048.9,1.32042573]
[1773278824493,1.2172535,2049.5,2049.1,1.32042573]
[1773278825504,1.2172535,2049.7,2049.1,1.32042573]
[1773278826600,1.32335795,2050.0,2049.0,1.32335795]
[1773278826601,1.2172535,2049.9,2049.3,1.32042573]
[1773278828298,1.2172535,2049.9,2049.5,1.32042573]
[1773278833404,1.2172535,2049.9,2049.3,1.32042573]
[1773278836709,1.2172535,2049.5,2048.8,1.32042573]
[1773278837007,1.2172535,2049.9,2049.2,1.32042573]
[1773278837911,1.2172535,2049.9,2049.4,1.32042573]
[1773278839715,1.2172535,2049.9,2049.3,1.32042573]
[1773278839911,1.31750672,2049.6,2049.0,1.32042573]
[1773278848118,1.32335795,2049.2,2048.8,1.27743299]
[1773278848414,1.31750672,2049.3,2048.8,1.27743299]
[1773278852422,0.24391,2049.8,2049.1,1.27743299]
[1773278852423,1.31750672,2049.7,2049.1,1.27743299]
[1773278856132,1.31750672,2049.5,2049.1,1.27743299]
[1773278858133,1.31750672,2049.5,2048.9,1.27743299]
[1773278862738,1.33722137,2049.3,2048.9,1.27743299]
[1773278865135,2.66057932,2049.6,2048.9,1.27743299]
[1773278865342,1.33722137,2049.9,2049.1,1.25065371]
[1773278865534,1.33722137,2049.6,2049.1,1.25065371]
[1773278876444,1.34008086,2049.7,2049.1,1.25065371]
[1773278881350,1.34008086,2049.8,2049.1,1.25065371]
[1773278896157,1.34479868,2050.1,2049.4,1.2725879]
[1773278896358,1.34479868,2050.1,2049.0,1.2725879]
[1773278896660,1.34008086,2049.9,2049.0,1.2725879]
[1773278900160,0.00471782,2050.1,2049.0,1.2725879]
[1773278900161,1.34083949,2049.7,2049.0,1.2725879]
[1773278903458,1.34083949,2050.1,2049.7,1.23516079]
[1773278903659,1.34083949,2050.5,2049.7,1.23516079]
[1773278903862,3.80198376,2050.6,2049.3,1.23516079]
[1773278903863,1.34083949,2050.3,2049.3,1.23516079]
[1773278904059,1.34083949,2050.3,2049.4,1.23516079]
[1773278904461,1.34646159,2050.3,2049.4,1.24129684]
[1773278904672,1.34646159,2050.3,2049.5,1.23516079]
[1773278908165,1.34083949,2050.1,2049.4,0.00613605]
[1773278908470,1.34083949,2050.1,2049.4,1.24129684]
[1773278924079,1.18092575,2050.1,2049.4,1.24129684]
[1773278935091,1.33003862,2050.3,2049.4,1.24129684]
[1773278935592,1.33003862,2050.3,2049.7,1.25159504]
[1773278936485,1.33003862,2050.3,2049.4,0.00613605]
[1773278936486,0.0056221,2050.3,2049.9,1.25159504]
[1773278936688,1.32441652,2050.4,2049.9,1.25159504]
[1773278937094,1.32441652,2050.2,2049.7,1.25159504]
[1773278937692,1.32945585,2050.2,2049.7,1.25159504]
[1773278944303,0.00503933,2050.2,2049.7,1.25159504]
[1773278944902,1.32945585,2050.2,2049.7,1.25159504]
[1773278946999,1.32441652,2050.4,2049.7,1.25159504]
[1773278948002,1.32964309,2050.4,2049.7,1.25159504]
[1773278948402,1.32441652,2050.2,2049.7,1.25159504]
[1773278953106,1.32441652,2049.8,2049.5,1.25159504]
[1773278953408,1.32441652,2049.6,2049.1,1.25159504]
[1773278954400,1.32441652,2049.6,2049.1,1.25696555]
[1773278955112,1.32441652,2049.8,2049.3,1.25159504]
[1773278956012,1.32441652,2049.8,2049.4,1.25159504]
[1773278956311,1.32441652,2050.1,2049.6,2.57325163]
[1773278956507,1.32441652,2050.1,2049.7,1.25159504]
[1773278962718,1.22562078,2050.0,2049.5,1.22463926]
[1773278962919,1.22562078,2050.0,2049.3,1.22463926]
[1773278966123,1.22562078,2050.0,2049.5,1.22463926]
[1773278966819,1.22562078,2050.0,2049.7,1.22463926]
[1773278967123,1.22562078,2050.2,2049.7,1.22463926]
[1773278973127,1.22562078,2050.3,2049.9,1.22463926]
[1773278977025,1.22562078,2050.6,2050.0,1.22463926]
[1773278977225,1.23084735,2050.4,2050.0,1.22463926]
[1773278979437,0.00522657,2050.4,2050.0,1.22463926]
[1773278979837,1.23084735,2050.4,2050.0,1.22463926]
[1773278984544,1.23084735,2050.4,2049.7,2.54646139]
[1773278984941,1.23084735,2050.4,2049.8,1.2248048]
[1773278986847,1.23084735,2050.4,2050.0,1.2248048]
[1773278987546,1.2601279,2050.0,2049.5,1.2248048]
[1773278987747,1.2601279,2050.0,2049.6,1.2248048]
[1773278988149,1.2601279,2050.2,2049.6,1.2248048]
[1773278992546,1.2741385,2049.6,2049.1,1.34867875]
[1773278994855,2.59579509,2049.2,2048.7,1.34330824]
[1773278995052,1.2741385,2049.6,2048.9,1.34330824]
[1773278995945,1.2741385,2049.6,2048.9,1.34961958]
[1773278997361,7.74082399,2049.8,2048.6,1.34330824]
[1773278997362,1.2741385,2049.3,2048.6,1.34330824]
[1773278998460,1.2741385,2049.3,2048.6,1.34824037]
[1773279000467,1.2741385,2049.7,2048.8,1.34330824]
[1773279000863,1.2741385,2049.5,2048.8,1.34330824]
[1773279003472,1.2741385,2049.7,2049.0,1.34330824]
[1773279003962,1.2741385,2050.1,2049.0,1.34330824]
[1773279004161,1.2741385,2050.0,2049.0,1.34330824]
[1773279004558,1.2741385,2050.0,2049.2,1.34330824]
[1773279005266,1.2741385,2050.3,2049.4,1.34330824]
[1773279006866,1.2741385,2050.3,2049.6,1.34330824]
[1773279012168,1.2741385,2050.1,2049.2,1.34330824]
[1773279012468,1.2741385,2050.3,2049.4,1.34330824]
[1773279013468,1.2741385,2050.1,2048.8,1.34330824]
[1773279013669,1.2741385,2049.9,2048.8,1.34330824]
[1773279013867,1.2741385,2050.1,2049.2,1.34330824]
[1773279014176,1.2741385,2050.1,2049.4,1.34330824]
[1773279016266,1.2741385,2050.3,2049.6,1.34330824]
[1773279020878,1.28019686,2050.2,2049.1,1.25127565]
[1773279021282,1.28019686,2050.0,2049.1,1.25127565]
[1773279023080,1.28019686,2049.8,2048.9,1.25127565]
[1773279024483,1.28019686,2049.6,2048.9,1.25127565]
[1773279025580,1.28019686,2049.6,2048.6,0.00493213]
[1773279025581,1.28019686,2049.6,2048.7,1.25127565]
[1773279025778,1.28019686,2049.4,2048.7,1.25127565]
[1773279039482,1.28019686,2049.2,2048.6,1.25620778]
[1773279041692,1.26805102,2049.7,2048.7,1.23325529]
[1773279042183,1.26805102,2049.5,2048.7,1.23325529]
[1773279043589,1.26805102,2049.4,2048.7,1.23325529]
[1773279044089,1.32282399,2049.9,2048.6,0.00493213]
[1773279044090,1.26805102,2050.0,2049.4,1.23325529]
[1773279045397,1.26805102,2050.1,2049.4,1.23325529]
[1773279047396,1.26805102,2050.0,2049.4,1.23325529]
[1773279049197,1.26805102,2050.0,2049.0,1.23325529]
[1773279052206,1.27300111,2049.8,2049.0,1.23325529]
[1773279054300,1.32282399,2050.3,2049.2,1.33213138]
[1773279054501,1.27300111,2050.1,2049.2,1.33213138]
[1773279057605,1.27300111,2049.9,2049.3,1.33213138]
[1773279057902,1.27300111,2049.9,2048.6,6.39693213]
[1773279057903,1.27300111,2050.1,2049.5,1.33213138]
[1773279063706,0.00522657,2050.4,2049.9,1.33213138]
[1773279063707,1.27300111,2050.3,2049.9,1.33213138]
[1773279069726,1.27822768,2050.4,2049.9,1.33213138]
[1773279071224,1.27300111,2050.7,2050.0,1.32230482]
[1773279071423,1.27300111,2050.5,2049.9,1.33213138]
[1773279072123,1.27300111,2050.3,2049.7,1.33213138]
[1773279072324,1.27300111,2050.1,2049.7,1.33213138]
[1773279072922,1.27300111,2050.1,2049.5,1.33213138]
[1773279073126,1.27300111,2049.7,2049.3,1.33213138]
[1773279077737,1.27300111,2049.9,2049.3,1.33213138]
[1773279079030,11.72511649,2050.3,2049.6,1.33213138]
[1773279079230,1.27820791,2050.3,2050.0,1.33213138]
[1773279080139,1.20140021,2050.4,2050.0,1.33213138]
[1773279080741,1.20140021,2050.6,2050.1,1.24284127]
[1773279081143,1.20140021,2050.5,2050.1,1.24885843]
[1773279081740,1.20740862,2050.6,2050.1,1.24885843]
[1773279082835,1.20140021,2050.5,2050.1,1.24885843]
[1773279084045,1.20140021,2050.5,2049.5,1.24284127]
[1773279084940,1.20140021,2050.5,2049.5,1.24886422]
[1773279097851,1.20140021,2050.4,2049.5,1.24886422]
[1773279098649,2.14075521,2050.5,2048.9,1.24284127]
[1773279098650,1.20140021,2050.1,2048.9,1.24284127]
[1773279099352,1.20140021,2050.3,2048.9,1.24284127]
[1773279099553,1.20140021,2050.1,2048.9,1.24284127]
[1773279099851,1.20140021,2050.1,2048.9,1.24778109]
[1773279105558,1.2765197,2049.8,2049.2,1.28146229]
[1773279111764,1.27364377,2049.6,2049.0,1.26412215]
[1773279112162,1.27364377,2049.9,2049.2,1.26412215]
[1773279113163,1.27364377,2049.7,2049.2,1.26412215]
[1773279115561,1.27364377,2049.3,2048.9,1.26906197]
[1773279115766,1.27364377,2049.3,2048.9,1.25823314]
[1773279116366,1.27364377,2049.5,2048.9,2.58062867]
[1773279116564,1.27364377,2049.5,2049.0,1.26412215]
[1773279116768,1.27364377,2049.5,2049.0,1.27025375]
[1773279117969,1.27364377,2049.9,2049.0,1.27025375]
[1773279125274,1.27364377,2049.9,2049.4,1.26412215]
[1773279130078,1.27364377,2050.0,2049.4,1.26412215]
[1773279131582,1.27364377,2050.2,2049.5,1.26412215]
[1773279132286,1.27364377,2050.1,2049.2,1.26412215]
[1773279136097,1.27364377,2049.9,2049.2,1.26412215]
[1773279137599,1.27364377,2049.7,2049.0,1.27025375]
[1773279140800,1.14581556,2050.1,2049.0,1.27025375]
[1773279140994,11.78039257,2050.2,2049.0,1.27025375]
[1773279140995,1.14581556,2049.9,2049.0,1.27025375]
[1773279151613,1.14581556,2049.9,2049.2,1.21425276]
[1773279154606,1.14581556,2050.3,2049.4,1.21425276]
[1773279154810,1.14581556,2050.1,2049.6,1.21425276]
[1773279159110,1.32266411,2050.0,2049.3,1.21425276]
[1773279159312,1.14581556,2049.9,2049.1,1.21425276]
[1773279159617,1.14581556,2049.5,2048.8,1.21425276]
[1773279160012,1.14581556,2049.0,2048.1,1.21425276]
[1773279160712,1.15098164,2049.0,2048.1,1.21885202]
[1773279179622,1.17301041,2048.8,2048.2,1.13487522]
[1773279179827,1.32351764,2048.9,2047.8,1.13487522]
[1773279179828,1.17301041,2048.4,2047.8,1.13487522]
[1773279180133,1.17301041,2048.4,2048.0,1.13487522]
[1773279180930,1.17301041,2048.4,2048.0,1.13953099]
[1773279182131,1.17301041,2048.0,2047.6,1.13487522]
[1773279182731,1.17301041,2047.8,2047.1,1.13487522]
[1773279182926,1.17301041,2047.5,2046.9,1.13487522]
[1773279183128,1.17664912,2047.5,2046.9,1.13908973]
[1773279183432,1.17301041,2048.1,2047.4,1.13487522]
[1773279183631,1.17301041,2048.1,2047.0,1.32351764]
[1773279183632,1.17301041,2048.1,2047.6,1.13487522]
[1773279183933,1.17301041,2047.9,2047.4,1.13487522]
[1773279184330,1.17750119,2047.9,2047.4,1.13487522]
[1773279186238,1.17750119,2047.9,2047.6,1.13487522]
[1773279186537,1.17750119,2047.9,2047.4,1.13487522]
[1773279187033,1.17301041,2047.5,2047.0,1.13487522]
[1773279187633,1.17301041,2047.5,2047.1,1.13487522]
[1773279188032,1.17301041,2047.8,2047.1,1.13487522]
[1773279189439,1.17301041,2047.7,2047.1,1.13487522]
[1773279192934,1.17301041,2047.7,2047.0,1.13487522]
[1773279193136,1.17301041,2047.5,2047.0,1.13487522]
[1773279193337,0.00449078,2047.9,2046.6,1.13487522]
[1773279193338,1.17301041,2047.0,2046.6,1.13487522]
[1773279193537,1.17301041,2046.8,2046.4,1.08012182]
[1773279193736,1.17301041,2047.0,2046.5,1.08012182]
[1773279193936,1.17301041,2047.3,2046.7,1.08012182]
[1773279194538,1.17301041,2047.3,2046.7,1.08394331]
[1773279195235,1.17301041,2047.3,2046.9,1.32351764]
[1773279195431,1.17301041,2047.3,2046.7,0.00382149]
[1773279195636,1.17301041,2047.0,2046.7,0.00382149]
[1773279195942,1.17301041,2047.0,2046.3,7.45155092]
[1773279196144,1.17301041,2046.4,2045.8,1.05644811]
[1773279196343,1.32351764,2047.0,2046.2,1.05644811]
[1773279196344,1.17301041,2046.6,2046.2,1.05644811]
[1773279196843,1.18911028,2046.2,2045.2,0.24445]
[1773279197043,1.19463216,2046.2,2045.4,1.32351764]
[1773279197249,1.19463216,2046.2,2045.5,1.32351764]
[1773279197751,1.20168232,2045.9,2045.2,0.00622652]
[1773279197946,1.20168232,2045.9,2045.3,1.32351764]
[1773279198847,0.00552188,2046.2,2045.7,1.32351764]
[1773279199049,1.20720599,2046.2,2045.7,1.32351764]
[1773279199346,1.20720599,2046.2,2045.3,1.32351764]
[1773279199553,1.20720599,2046.2,2045.5,1.32351764]
[1773279200650,1.20225243,2046.0,2045.4,1.32351764]
[1773279202247,1.20469766,2046.2,2045.8,1.32351764]
[1773279202649,1.19981932,2046.6,2046.0,2.64703528]
[1773279202954,1.19981932,2046.6,2046.0,1.32351764]
[1773279203546,1.19981932,2046.6,2045.9,2.14813233]
[1773279203752,0.00391175,2046.6,2045.9,2.14813233]
[1773279204852,1.19541827,2047.4,2045.9,2.14813233]
[1773279205351,2.14813233,2047.6,2045.9,2.14813233]
[1773279205352,1.18944456,2047.2,2045.9,2.14813233]
[1773279205656,1.1941706,2047.2,2046.0,6.395]
[1773279206157,1.1941706,2047.2,2045.9,2.14813233]
[1773279206451,1.1941706,2047.2,2046.0,6.395]
[1773279206656,1.1941706,2047.2,2046.1,6.395]
[1773279207956,1.1941706,2047.2,2045.9,6.395]
[1773279208360,1.18869172,2046.9,2045.3,2.14813233]
[1773279208559,1.18869172,2046.9,2045.6,2.14813233]
[1773279210755,1.18869172,2046.9,2045.7,6.395]
[1773279213462,1.18869172,2046.9,2045.3,2.14813233]
[1773279213663,1.16693302,2046.7,2045.3,2.14813233]
[1773279213964,1.16693302,2046.6,2045.3,6.394]
[1773279214461,1.16693302,2046.6,2045.2,0.00622652]
[1773279214661,1.16693302,2046.6,2045.3,6.394]
[1773279215053,1.16693302,2046.6,2045.2,0.00622652]
[1773279215258,1.16693302,2046.6,2045.3,6.394]
[1773279215859,1.16693302,2046.6,2045.4,6.394]
[1773279216465,1.16693302,2046.6,2045.2,0.00622652]
[1773279216666,1.16693302,2046.6,2045.3,6.394]
[1773279217468,1.16693302,2046.6,2045.2,6.40022652]
[1773279217969,1.16693302,2046.6,2045.2,0.00622652]
[1773279218463,2.14813233,2046.7,2045.2,0.00622652]
[1773279218464,1.16852873,2046.4,2045.2,0.00622652]
[1773279218666,1.16852873,2046.4,2045.3,6.394]
[1773279221367,1.16852873,2046.4,2045.4,6.395]
[1773279222968,1.16852873,2046.4,2045.2,0.00622652]
[1773279223174,1.16852873,2046.4,2045.2,6.40022652]
[1773279223472,1.16852873,2046.4,2045.2,0.00622652]
[1773279223666,1.16650744,2046.1,2045.3,1.32725107]
[1773279224265,1.16650744,2046.1,2045.3,7.72225107]
[1773279224466,1.16650744,2046.1,2045.3,1.32725107]
[1773279225472,1.16801246,2045.7,2045.2,6.40122652]
[1773279225677,1.17272037,2045.7,2045.2,6.40122652]
[1773279225868,1.17272037,2045.7,2045.2,0.00622652]
[1773279226173,1.17272037,2045.7,2045.3,6.395]
[1773279226371,0.00470791,2045.7,2045.3,6.395]
[1773279226976,1.16801246,2045.9,2045.4,1.32725107]
[1773279227275,1.16801246,2046.1,2045.4,1.32725107]
[1773279227675,1.16951154,2045.9,2045.2,0.00622652]
[1773279227977,1.16951154,2045.2,2044.1,1.32725107]
[1773279228176,1.16951154,2045.2,2044.5,1.32725107]
[1773279228379,1.16951154,2045.4,2044.7,1.32725107]
[1773279228770,2.50300255,2045.4,2044.8,6.395]
[1773279228966,1.16951154,2045.3,2044.8,6.395]
[1773279229372,1.17575148,2045.4,2044.8,7.72225107]
[1773279229572,1.17575148,2045.4,2044.8,6.395]
[1773279229771,0.00623994,2045.4,2044.8,6.395]
[1773279229979,0.85732368,2045.9,2044.8,6.395]
[1773279230980,0.86127567,2045.9,2044.9,6.395]
[1773279231975,0.86127567,2045.9,2045.0,6.395]
[1773279234374,0.86127567,2045.9,2044.7,0.25010061]
[1773279234578,0.86127567,2045.9,2044.8,6.395]
[1773279234878,0.86127567,2045.9,2044.7,0.00559061]
[1773279235073,0.86127567,2045.9,2044.9,6.395]
[1773279235778,0.86127567,2045.9,2045.0,6.395]
[1773279239075,0.86127567,2045.9,2044.9,2.15127479]
[1773279239282,0.86127567,2045.9,2045.0,6.395]
[1773279240478,0.00395199,2045.9,2045.1,0.24447]
[1773279240677,0.87003829,2046.6,2045.1,0.24447]
[1773279241586,0.87585264,2046.6,2045.1,0.24447]
[1773279241986,0.87585264,2046.6,2045.2,40.8]
[1773279242185,0.87585264,2046.6,2045.2,42.95049509]
[1773279242588,0.87585264,2046.6,2045.7,2.15049509]
[1773279242589,0.87510672,2046.6,2045.7,2.15049509]
[1773279242791,0.87510672,2046.6,2045.8,6.395]
[1773279242978,0.87510672,2046.6,2045.9,6.395]
[1773279243186,0.87510672,2046.6,2046.0,6.395]
[1773279244079,0.87510672,2046.6,2046.0,6.394]
[1773279244283,0.87510672,2046.6,2045.3,10.43508173]
[1773279244582,0.87510672,2046.6,2045.4,6.394]
[1773279245487,0.87510672,2046.6,2045.5,6.394]
[1773279248387,0.87510672,2046.6,2045.6,0.24441]
[1773279248582,0.88232969,2046.8,2045.7,2.15049509]
[1773279249586,0.0060128,2046.8,2045.8,0.24439]
[1773279249987,0.88646369,2046.8,2045.8,0.24439]
[1773279251484,0.0060128,2046.8,2045.8,0.24439]
[1773279251686,0.88311725,2046.8,2045.8,0.24439]
[1773279252687,0.88311725,2046.8,2045.9,6.394]
[1773279253488,0.88311725,2046.8,2046.0,6.394]
[1773279253889,0.88311725,2046.8,2046.1,6.394]
[1773279255393,0.88311725,2046.8,2045.8,0.24439]
[1773279255591,0.88311725,2046.8,2045.9,6.393]
[1773279257492,0.88311725,2046.8,2046.0,6.393]
[1773279263695,0.85272679,2047.2,2046.1,2.39484509]
[1773279264001,0.85272679,2047.2,2046.2,6.394]
[1773279264803,0.85616994,2047.2,2046.2,6.3993282]
[1773279268211,0.85616994,2047.2,2046.3,6.394]
[1773279268411,0.85616994,2047.2,2046.4,6.394]
[1773279268612,0.85616994,2047.2,2046.2,0.0053282]
[1773279268805,0.85616994,2047.2,2046.3,6.394]
[1773279269204,0.85616994,2047.2,2046.2,0.0053282]
[1773279269807,0.85616994,2047.2,2046.2,6.3993282]
[1773279273013,0.85101458,2047.0,2046.2,6.3993282]
[1773279285620,1.09526458,2047.0,2045.6,10.19063173]
[1773279285821,0.82460533,2046.6,2045.1,10.19063173]
[1773279286023,2.15049509,2046.7,2045.2,6.395]
[1773279286024,0.82460533,2046.4,2045.2,6.395]
[1773279286626,0.82460533,2046.4,2045.2,6.39975955]
[1773279287922,0.82460533,2046.4,2045.3,6.395]
[1773279289526,0.82460533,2046.4,2045.4,6.395]
[1773279289922,0.82460533,2046.4,2045.2,0.00475955]
[1773279290127,0.82460533,2046.4,2045.3,6.396]
[1773279291933,0.82460533,2046.4,2045.2,0.00475955]
[1773279292133,0.82460533,2046.4,2045.3,6.396]
[1773279292633,0.82460533,2046.4,2045.2,0.00475955]
[1773279292927,0.82460533,2046.4,2045.3,6.396]
[1773279293334,0.82460533,2046.4,2045.4,6.396]
[1773279293636,0.24433,2046.3,2045.2,6.40075955]
[1773279293935,0.84694843,2046.2,2045.2,6.40075955]
[1773279299133,0.84694843,2046.2,2045.2,0.00475955]
[1773279301033,3.00724066,2046.0,2045.2,0.00475955]
[1773279301335,0.85650275,2045.9,2045.2,0.00475955]
[1773279302433,0.8582798,2045.6,2044.7,6.396]
[1773279302632,0.8582798,2045.6,2044.6,6.396]
[1773279303328,0.86390341,2045.6,2044.6,6.39977322]
[1773279303738,0.00562361,2045.6,2044.6,8.55051113]
[1773279304132,0.8575038,2045.7,2044.6,8.55051113]
[1773279305132,0.86226431,2045.7,2044.6,8.55051113]
[1773279306635,0.86226431,2045.7,2044.7,0.24452]
[1773279306837,0.85009969,2045.9,2044.9,2.15073791]
[1773279307038,0.85009969,2045.9,2044.7,0.24452]
[1773279307240,0.85009969,2045.9,2044.8,6.397]
[1773279307439,0.85009969,2045.9,2044.9,6.397]
[1773279307938,0.85386877,2045.9,2045.0,6.397]
[1773279308240,0.85386877,2045.9,2044.7,0.24452]
[1773279308241,0.85386877,2045.9,2045.1,6.397]
[1773279311140,0.85386877,2045.9,2044.7,0.24452]
[1773279311342,0.85386877,2045.9,2044.8,6.396]
[1773279311940,0.85386877,2045.9,2044.7,0.24452]